Cogmind - Beta 13 @@@ ROGUE MODE // 2024.06.14 @ 18:45:17 // Winter2019/RPGLIKE Player: Haldron Result: Destroyed by as-75139 with Assembled Gauss Rifle Performance ------------- Evolutions (3) 1500 Regions Visited (12) 2400 Robots Destroyed (232) 1160 Value Destroyed (7998) 7998 Prototype IDs (28) 560 Alien Tech Used (0) 0 Bonus (3892) 3892 TOTAL SCORE: 17510 Bonus ------- High Alert Combat Kills 1513 Follower Combat Kills 393 Destroyed Z-Imprinter 1000 Triggered Deep Caves Wall 500 Exposed GOLEM Chamber 500 Friendly Fire -14 Cogmind --------- Core Integrity 0/1000 Matter 281/300 Energy 698/700 System Corruption 0% Temperature Cool (13) Movement Flying (23) Location -7/Deep Caves Parts ------- > --- POWER (1) -------- Zionite Light DM Reactor > --- PROPULSION (6) --- Cesium-ion Thruster Improved VTOL Module Improved VTOL Module Improved VTOL Module Cooled VTOL Module > --- UTILITY (6) ------ Zionite Biocell Improved Signal Interpreter Advanced Melee Analysis Suite Microactuators Reaction Control System Corruption Screen > --- WEAPON (4) ------- Makeshift Spear CR-A16's Pointy Stick Force Lance > --- INVENTORY (5) ---- Gravity Neutralizer Authchip [Propulsion] GOLEM Unit Plasma Cutter Peak State ------------ > --- POWER ------------ Zionite Light DM Reactor > --- PROPULSION ------- Cesium-ion Thruster Cesium-ion Thruster Improved VTOL Module Improved VTOL Module Improved VTOL Module Cooled VTOL Module > --- UTILITY ---------- Improved Signal Interpreter Advanced Melee Analysis Suite Microactuators Reaction Control System Zionite Light Carapace Corruption Screen > --- WEAPON ----------- Zionite Laser-M Makeshift Spear CR-A16's Pointy Stick Force Lance > --- INVENTORY -------- Zionite Biocell Gravity Neutralizer Authchip [Propulsion] Advanced EMP Blaster Plasma Cutter [Rating: 81] Favorites ----------- Power Micro Nuclear Core Engine Ion Engine Power Core Micro Nuclear Core Reactor Zionite Light DM Reactor Propulsion Improved VTOL Module Treads Improved Treads Wheel Wheel Flight Unit Improved VTOL Module Utility Improved Signal Interpreter Device Reaction Control System Storage Zionite Biocell Processor Improved Signal Interpreter Hackware Hacking Suite Protection Insulated Plating Weapon Great Axe Energy Gun Particle Gun Energy Cannon Advanced Plasma Cannon Ballistic Gun Assault Rifle Ballistic Cannon Assault Cannon Launcher Advanced EMP Blaster Special Weapon Plasma Cutter Impact Weapon Impact Mace Slashing Weapon Great Axe Piercing Weapon Force Lance Build | -11 -10 -10 -10 -9 -8 -8 -7 -7 -7 -7 -7 -7 ------- Run | Yrd Mat Min Exi Min Mat Sto Fac Was Fac Low Zio Dee Slots Evolved 13 | 3 . 1 . . 5 1 2 . 1 . . . Power . | . . . . . . . . . . . . . Propulsion 5 | 1 . . . . 2 . 1 . 1 . . . Utility 5 | 1 . . . . 3 . 1 . . . . . Weapon 3 | 1 . 1 . . . 1 . . . . . . Parts Attached 122 | 7 4 2 3 2 34 9 14 2 21 2 8 14 Power 4 | 1 . . . . 2 . . . . . . 1 Engine 2 | 1 . . . . 1 . . . . . . . Core 1 | . . . . . 1 . . . . . . . Reactor 1 | . . . . . . . . . . . . 1 Propulsion 22 | 2 1 . . . 9 3 3 1 3 . . . Treads 5 | 1 1 . . . 3 . . . . . . . Leg . | . . . . . . . . . . . . . Wheel 1 | 1 . . . . . . . . . . . . Hover . | . . . . . . . . . . . . . Flight 16 | . . . . . 6 3 3 1 3 . . . Utility 40 | 2 1 . . . 12 1 7 . 8 . 1 8 Device 24 | 2 1 . . . 3 1 6 . 5 . 1 5 Storage 2 | . . . . . . . . . . . . 2 Processor 6 | . . . . . 4 . . . 2 . . . Hackware 1 | . . . . . . . 1 . . . . . Protection 7 | . . . . . 5 . . . 1 . . 1 Artifact . | . . . . . . . . . . . . . Weapon 56 | 2 2 2 3 2 11 5 4 1 10 2 7 5 Energy Gun 11 | 1 1 1 2 2 1 . . . . . . 3 Energy Cannon 1 | . . . . . . . 1 . . . . . Ballistic Gun 3 | 1 . 1 1 . . . . . . . . . Ballistic Cannon 6 | . 1 . . . 4 1 . . . . . . Launcher 8 | . . . . . 1 1 1 . 2 1 . 2 Special Weapon 3 | . . . . . 1 . . . . . 2 . Impact Weapon 5 | . . . . . . . . . 4 1 . . Slashing Weapon 10 | . . . . . 4 3 2 . 1 . . . Piercing Weapon 9 | . . . . . . . . 1 3 . 5 . Special Melee Weapon . | . . . . . . . . . . . . . Unidentified Prototypes 12 | . . . . . 2 3 1 . . . . 6 Parts Lost 3 | . . . . . . . . . 1 . . 2 Power . | . . . . . . . . . . . . . Propulsion 1 | . . . . . . . . . . . . 1 Utility 1 | . . . . . . . . . 1 . . . Weapon 1 | . . . . . . . . . . . . 1 Highest Loss Streak 2 | . . . . . . . . . 1 . . 2 To Critical Strikes . | . . . . . . . . . . . . . Average Slot Usage (%) 98 | . 100 100 89 100 97 100 100 100 96 100 99 99 Engine 4 | . 14 12 12 12 6 . . . . . . . Core 3 | . . . . . 2 7 6 6 5 5 5 . Treads 5 | . 14 12 12 12 7 . . . . . . . Wheel 3 | . 14 12 12 12 1 . . . . . . . Flight 20 | . . . . . 12 29 31 31 34 35 35 34 Device 20 | . 28 26 25 25 21 14 18 25 19 11 11 10 Processor 8 | . . . . . 10 14 7 6 8 17 17 17 Protection 5 | . . . . . 8 7 6 6 5 5 5 4 Energy Gun 4 | . 13 13 18 25 3 . . . . . . . Ballistic Gun 3 | . 14 19 8 12 1 . . . . . . . Ballistic Cannon 3 | . . . . . 11 . . . . . . . Special Weapon 1 | . . . . . 4 . . . . . 1 . Impact Weapon 1 | . . . . . . . . . 6 17 3 . Slashing Weapon 7 | . . . . . 5 24 25 18 7 . . . Piercing Weapon 2 | . . . . . . . . 6 4 5 16 18 Naked Turns . | . . . . . . . . . . . . . Heaviest Build 38 | 11 13 16 16 16 34 26 33 35 35 37 38 38 Greatest Support 53 | 20 23 10 10 10 44 42 42 36 53 40 40 40 Greatest Overweight (x) 11 | 2 1 1 1 1 11 . . . . . . . Average Overweight (x) . | . . 1 . 1 . . . . . . . . Largest Inventory Capacity 5 | 3 3 3 3 3 3 3 4 4 5 5 5 5 Average Capacity 3 | 3 3 3 3 3 3 3 3 4 4 5 5 5 Most Carried 5 | 2 3 3 3 3 3 3 4 4 5 5 5 5 Average Carried 3 | . 1 3 3 3 2 2 3 4 4 5 5 4 Final Capacity 5 | 3 3 3 3 3 3 3 4 4 5 5 5 5 Final Carried 5 | . 3 3 3 3 3 3 4 4 5 5 5 5 Class Distribution -------------------- 50% | Hacker-Scout 17% | Skirmisher 16% | Mutant 6% | Gunner 5% | Scout Dominant Class ---------------- Mutant | -10/Materials Gunner | -10/Mines Gunner | -10/Exiles Gunner | -9/Mines Skirmisher | -8/Materials Hacker-Scout | -8/Storage Hacker-Scout | -7/Factory Hacker-Scout | -7/Waste Hacker-Scout | -7/Factory Hacker-Scout | -7/Lower Caves Hacker-Scout | -7/Zion Hacker-Scout | -7/Deep Caves Resources | -11 -10 -10 -10 -9 -8 -8 -7 -7 -7 -7 -7 -7 ----------- Run | Yrd Mat Min Exi Min Mat Sto Fac Was Fac Low Zio Dee Matter Collected 2524 | 282 372 53 45 45 926 98 175 27 250 25 45 181 Remotely 1013 | 118 294 . . . 601 . . . . . . . Salvage Created 7133 | 86 628 . . 48 1135 997 1056 . 2040 960 . 183 Parts 441 | 9 34 6 . 5 60 61 110 . 88 50 . 18 Haulers Intercepted 15 | . 1 . . . 6 4 2 . 2 . . . Recyclers Shooed 1 | . 1 . . . . . . . . . . . Parts Field Recycled . | . . . . . . . . . . . . . Retrieved Matter . | . . . . . . . . . . . . . Parts Self-Destructed 39 | . . . . . . . . . . 39 . . Prevented 10 | . . . . . . . . . . 10 . . Kills | -11 -10 -10 -10 -9 -8 -8 -7 -7 -7 -7 -7 -7 ------- Run | Yrd Mat Min Exi Min Mat Sto Fac Was Fac Low Zio Dee Combat Hostiles Destroyed 170 | . 18 3 . 4 27 14 28 . 37 31 . 8 Melee 90 | . . . . . 5 14 22 . 23 20 . 6 Guns 30 | . 17 3 . 4 5 . . . . . . 1 Cannons 14 | . . . . . 14 . . . . . . . AOE 21 | . . . . . 3 . 6 . 8 3 . 1 Classes Destroyed 20 | 2 5 . . . 2 2 3 . 2 2 . 2 Worker 8 | . 1 . . . . 1 4 . 2 . . . Builder 3 | . . . . . . . 2 . 1 . . . Tunneler 4 | 2 1 . . . 1 . . . . . . . Hauler 15 | . 1 . . . 6 4 2 . 2 . . . Recycler 9 | 1 . . . . 2 1 2 . 3 . . . Minesweeper 2 | . . . . . . . . . . 2 . . Mechanic 1 | . . . . . . 1 . . . . . . Operator 10 | . . . . . 1 2 3 . 4 . . . Watcher 15 | . 2 . . . 2 1 6 . 4 . . . Swarmer 41 | . 3 3 . 4 9 . 10 . 3 9 . . Grunt 72 | . 15 . . . 12 8 5 . 19 13 . . Brawler 8 | . . . . . . . . . 5 3 . . Duelist 6 | . . . . . . . 1 . 2 3 . . Protector 1 | . . . . . . . . . 1 . . . Sentry 24 | . . . . . 6 5 7 . 4 2 . . Hunter 7 | . . . . . . 1 3 . 3 . . . Programmer 2 | . . . . . . . 2 . . . . . Behemoth 1 | . . . . . . . . . . 1 . . Z-Light 2 | . . . . . . . . . . . . 2 Assembled 5 | . . . . . . . . . . . . 5 Best Kill Streak 13 | 3 3 3 . 4 4 4 12 . 11 13 . 3 Combat Bots Only 13 | . 3 3 . 4 3 4 5 . 10 13 . 3 Max Kills in Single Turn 6 | 1 1 2 . 2 2 1 4 . 6 4 . 1 Gunslinging 1 | . . 1 . 1 1 . . . . . . . Exploded 6 | . . . . . 2 . 3 . 6 3 . 1 Melee 2 | . . . . . 1 1 1 . 2 1 . 1 Uniques/NPCs Destroyed 1 | . . . . . . . . . . . . 1 Z-Imprinter (-7/Deep Caves) Combat | -11 -10 -10 -10 -9 -8 -8 -7 -7 -7 -7 -7 -7 -------- Run | Yrd Mat Min Exi Min Mat Sto Fac Was Fac Low Zio Dee Hostile Shots Fired 884 | . 100 10 . 8 153 62 135 . 185 123 . 108 Missed 405 | . 25 3 . 4 49 29 67 . 108 58 . 62 Damage Taken 7040 | . 806 37 . 21 1168 489 732 109 1055 1140 . 1483 Core 4877 | . 653 30 . 16 765 315 487 63 760 663 . 1125 Absorbed by Shields 474 | . 33 18 . 9 414 . . . . . . . Redirected to Core 3906 | . 495 18 . 16 653 235 360 63 613 592 . 861 Ignored by Resistances 12 | . . . . . . . 12 . . . . . Regen/Repaired (Parts) 48 | . . . . . 24 . . 24 . . . . Core Remaining (%) 100 | 100 . . . 100 . 100 . . . . . . Volleys Fired 205 | 4 97 11 . 2 70 . 1 . 9 1 . 10 Largest 3 | 2 2 3 . 3 3 . 1 . 1 1 . 1 Hottest 153 | 70 85 121 . 141 153 . 36 . 36 36 . 73 Shots Fired 429 | 8 193 25 . 6 176 . 1 . 9 1 . 10 Gun 303 | 8 184 25 . 6 77 . . . . . . 3 Cannon 99 | . 9 . . . 90 . . . . . . . Launcher 20 | . . . . . 2 . 1 . 9 1 . 7 Special 7 | . . . . . 7 . . . . . . . Kinetic 236 | 4 107 10 . 2 113 . . . . . . . Thermal 173 | 4 86 15 . 4 61 . . . . . . 3 Explosive . | . . . . . . . . . . . . . Electromagnetic 20 | . . . . . 2 . 1 . 9 1 . 7 Robot Hit Streak 15 | 3 10 7 . 5 15 . . . 1 2 . 4 Robot Miss Streak 4 | 1 4 2 . 1 4 . . . 1 . . 3 Penetration Max . | . . . . . . . . . . . . . Secondary Targets 8 | . 1 1 . 2 4 . . . . . . . Max Gunslinging Chain 1 | . 1 1 . 1 1 . . . . . . . Shots Hit Robots 584 | 5 118 14 . 5 142 51 83 1 83 57 . 25 Core Hits 257 | 4 39 4 . 4 52 21 47 . 54 19 . 13 Critical Kills 5 | . 1 . . . . . . . . 4 . . Critical Parts Destroyed 12 | . . . . . . . . . 2 10 . . Critical Strikes 54 | 1 3 1 . . 9 2 10 . 8 18 . 2 Burn 5 | 1 2 1 . . 1 . . . . . . . Destroy 1 | . 1 . . . . . . . . . . . Blast 5 | . . . . . 5 . . . . . . . Smash 18 | . . . . . . . . . 2 16 . . Sever 21 | . . . . . 3 2 10 . 6 . . . Impale 4 | . . . . . . . . . . 2 . 2 Melee Attacks 474 | . . . . . 40 69 130 4 124 78 1 28 Impact 97 | . . . . . . . . . 33 64 . . Slashing 311 | . . . . . 40 69 130 1 71 . . . Piercing 66 | . . . . . . . . 3 20 14 1 28 Sneak Attacks 41 | . . . . . 4 12 10 . 8 6 . 1 Combat Hostiles 6 | . . . . . . 1 1 . 1 2 . 1 Follow-up Attacks 89 | . . . . . 3 13 29 . 20 17 . 7 Damage Inflicted 27704 | 62 1627 179 . 68 3745 2901 5915 32 7390 4021 . 1764 Guns 2648 | 62 1502 179 . 68 804 . . . . . . 33 Cannons 1574 | . 124 . . . 1450 . . . . . . . Explosions 4056 | . . . . . 100 . 1543 . 2073 183 . 157 Melee 19382 | . . . . . 1348 2901 4372 32 5317 3838 . 1574 Ramming 1 | . 1 . . . . . . . . . . . Kinetic 2586 | 37 812 90 . 25 1622 . . . . . . . Thermal 3023 | 25 814 89 . 43 694 . 709 . 532 84 . 33 Explosive 1701 | . . . . . . . 817 . 884 . . . Electromagnetic 1011 | . . . . . 81 . 17 . 657 99 . 157 Impact 4361 | . . . . . . . . . 1407 2954 . . Slashing 11922 | . . . . . 1348 2901 4372 . 3301 . . . Piercing 3099 | . . . . . . . . 32 609 884 . 1574 Highest Corruption 5 | . 5 5 5 5 1 1 1 5 3 . . . Average Corruption 2 | . 3 5 5 5 1 1 1 4 2 . . . Corruption Purged 12 | . . . . . . . 3 6 3 . . . Corruption Blocked . | . . . . . . . . . . . . . Effects 31 | . 9 8 3 3 1 3 2 2 . . . . Message Errors 7 | . 2 3 . . . . 2 . . . . . Matter Fused 9 | . 2 1 2 2 . 1 . 1 . . . . Heat Flow Errors 4 | . 2 1 . . 1 . . . . . . . Energy Discharges 3 | . 1 . 1 . . 1 . . . . . . Parts Rejected 1 | . . . . . . . . 1 . . . . Parts Fused 1 | . 1 . . . . . . . . . . . Data Loss (minor) 3 | . . 1 . 1 . 1 . . . . . . Misfires 2 | . 1 1 . . . . . . . . . . Weapon Failures 1 | . . 1 . . . . . . . . . . Overload Shots . | . . . . . . . . . . . . . Overflow Damage 4056 | . . . . . 123 304 661 . 1421 1218 . 329 Projectiles 5 | . . . . . 5 . . . . . . . Explosions 426 | . . . . . . . 272 . 110 32 . 12 Melee 3625 | . . . . . 118 304 389 . 1311 1186 . 317 Knockbacks 36 | . 3 . . . 15 . . . 8 10 . . Impact 18 | . . . . . . . . . 8 10 . . Kinetic 17 | . 3 . . . 14 . . . . . . . Secondary 1 | . . . . . 1 . . . . . . . Self-Inflicted Damage 22 | . . . . . . . . . . . . 22 Shots 2 | . . . . . . . . . . . . 2 Rammed 1 | . 1 . . . . . . . . . . . Targets Rammed 1 | . 1 . . . . . . . . . . . Kicked . | . . . . . . . . . . . . . Crushed . | . . . . . . . . . . . . . Highest Temperature 357 | 38 343 74 . 9 357 . . . 14 4 . 71 Average Temperature 77 | 16 83 28 . 6 98 . . . 5 2 . 18 Received Heat Transfer 2487 | . 416 . . . 525 234 207 . 381 420 . 304 Effects 4 | . 3 . . . 1 . . . . . . . Shutdowns 1 | . 1 . . . . . . . . . . . Energy Bleed 2 | . 2 . . . . . . . . . . . Matter Decay 1 | . . . . . 1 . . . . . . . Siege Activations . | . . . . . . . . . . . . . Robots Corrupted 1 | . . . . . . . . . 1 . . . Combat Hostiles 1 | . . . . . . . . . 1 . . . Parts Fried 20 | . . . . . . . . . 10 10 . . Impact Corruptions 50 | . . . . . . . . . 19 31 . . Robots Melted 1 | . 1 . . . . . . . . . . . Combat Hostiles 1 | . 1 . . . . . . . . . . . Parts Melted 7 | 1 3 1 . . 1 . 1 . . . . . Heat Transferred 5701 | 148 2257 296 . 111 1752 . 650 . 350 100 . 37 Parts Sabotaged . | . . . . . . . . . . . . . Parts Stolen . | . . . . . . . . . . . . . Parts Stripped . | . . . . . . . . . . . . . Power Chain Reactions 4 | . . . . . 1 . . . 2 1 . . Alert | -11 -10 -10 -10 -9 -8 -8 -7 -7 -7 -7 -7 -7 ------- Run | Yrd Mat Min Exi Min Mat Sto Fac Was Fac Low Zio Dee Peak Influence 1783 | 15 314 178 . 90 864 984 1173 425 1783 . . . Initial 410 | . 9 108 . . 35 354 151 410 253 . . . Average 464 | 4 217 152 . 88 441 628 464 379 854 . . . Maximum Alert Level 5 | . 1 . . . 3 3 4 2 5 . . . Low Security (%) 18 | 100 34 100 . 100 4 . 17 . . . . . Level 1 36 | . 65 . . . 48 8 35 62 10 . . . Level 2 26 | . . . . . 34 56 25 38 38 . . . Level 3 13 | . . . . . 12 34 14 . 28 . . . Level 4 2 | . . . . . . . 6 . 9 . . . Level 5 2 | . . . . . . . . . 13 . . . High Security . | . . . . . . . . . . . . . Max Security . | . . . . . . . . . . . . . Squads Dispatched 41 | . 4 . . . 5 4 14 . 14 . . . Investigation 24 | . 3 . . . 3 . 8 . 10 . . . Extermination 2 | . . . . . . . 2 . . . . . Reinforcement 7 | . 1 . . . 1 2 2 . 1 . . . Assault 7 | . . . . . 1 2 2 . 2 . . . Garrison 1 | . . . . . . . . . 1 . . . Intercept . | . . . . . . . . . . . . . Searches Triggered . | . . . . . . . . . . . . . Construction Impeded 2 | . . . . . . . 2 . . . . . Haulers Reinforced . | . . . . . . . . . . . . . Active Scanning Responses . | . . . . . . . . . . . . . Cargo Convoy Interrupts . | . . . . . . . . . . . . . Stealth | -11 -10 -10 -10 -9 -8 -8 -7 -7 -7 -7 -7 -7 --------- Run | Yrd Mat Min Exi Min Mat Sto Fac Was Fac Low Zio Dee Distress Signals 9 | . 3 . . . 2 2 1 . 1 . . . Communications Jammed . | . . . . . . . . . . . . . Distress Signals . | . . . . . . . . . . . . . Times Spotted 312 | . 32 5 . 4 41 20 34 6 55 32 . 83 Peak Tracking Total 72 | . 4 3 . 4 7 6 5 5 8 9 . 72 Tactical Retreats 16 | . 1 . . . . 1 3 . 6 4 . 1 Traps | -11 -10 -10 -10 -9 -8 -8 -7 -7 -7 -7 -7 -7 ------- Run | Yrd Mat Min Exi Min Mat Sto Fac Was Fac Low Zio Dee Traps Triggered 10 | . 5 . . . . . 3 . 2 . . . Indirectly . | . . . . . . . . . . . . . Trap Hack Attempts . | . . . . . . . . . . . . . Triggered . | . . . . . . . . . . . . . Disarmed 14 | . . . . . . . 6 . 8 . . . Reprogrammed 10 | . . . . . . . 10 . . . . . Reused . | . . . . . . . . . . . . . Traps Extracted 6 | . . . . . . . 6 . . . . . Installed . | . . . . . . . . . . . . . Triggered 4 | . . . . . . . . . . 4 . . Most Traps Carried 6 | . . . . . . . 6 6 6 6 6 . Objects Rigged 26 | . . . . . . . 19 . 7 . . . Exploded 9 | . . . . . . . 4 . 5 . . . Machines | -11 -10 -10 -10 -9 -8 -8 -7 -7 -7 -7 -7 -7 ---------- Run | Yrd Mat Min Exi Min Mat Sto Fac Was Fac Low Zio Dee Machines Disabled 48 | . 1 . . . 5 3 19 . 18 1 . 1 Max in Single Turn 6 | . 1 . . . 1 1 6 . 4 1 . 1 Garrison Access 6 | . . . . . 1 . 3 . 2 . . . Machines Repaired . | . . . . . . . . . . . . . Machines Dismantled 4 | . . . . . . . . . . . 4 . Machines Sabotaged . | . . . . . . . . . . . . . Overloaded Fab Kills . | . . . . . . . . . . . . . Hacking | -11 -10 -10 -10 -9 -8 -8 -7 -7 -7 -7 -7 -7 --------- Run | Yrd Mat Min Exi Min Mat Sto Fac Was Fac Low Zio Dee Machines Accessed 71 | . 8 . 1 . 10 7 25 . 20 . . . Terminals 51 | . 7 . . . 8 6 16 . 14 . . . Fabricators 7 | . . . . . . . 4 . 3 . . . Repair Stations 2 | . . . . . 1 . 1 . . . . . Recycling Units 2 | . 1 . . . . . . . 1 . . . Scanalyzers 1 | . . . . . . . 1 . . . . . Garrison Access 7 | . . . . . 1 1 3 . 2 . . . Total Hacks 267 | . 23 . 1 . 34 30 93 . 86 . . . Successful 152 | . 14 . 1 . 17 17 54 . 49 . . . Failed 115 | . 9 . . . 17 13 39 . 37 . . . Catastrophic 7 | . . . . . 2 1 2 . 2 . . . Database Lockouts . | . . . . . . . . . . . . . Manual 148 | . 16 . . . 18 13 49 . 52 . . . Terminals 216 | . 21 . . . 27 27 75 . 66 . . . Fabricators 18 | . . . . . . . 8 . 10 . . . Repair Stations 5 | . . . . . 4 . 1 . . . . . Recycling Units 4 | . 2 . . . . . . . 2 . . . Scanalyzers 2 | . . . . . . . 2 . . . . . Garrison Access 21 | . . . . . 3 3 7 . 8 . . . Terminal Hacks 72 | . 5 . 1 . 8 12 27 . 19 . . . Record 2 | . . . 1 . . . . . 1 . . . Part Schematic 5 | . . . . . . . 1 . 4 . . . Robot Schematic 3 | . . . . . . 1 1 . 1 . . . Robot Analysis 5 | . . . . . 1 . 3 . 1 . . . Prototype ID Bank 9 | . 1 . . . 2 1 1 . 4 . . . Open Door 3 | . . . . . . 3 . . . . . . Branch Access Points 2 | . . . . . . . 1 . 1 . . . Machine Index 1 | . . . . . . . . . 1 . . . Terminal Index 3 | . 1 . . . . 1 1 . . . . . Fabricator Index 1 | . . . . . . . 1 . . . . . Garrison Index 1 | . . . . . . . 1 . . . . . Alert Level 7 | . . . . . 1 2 4 . . . . . Unreport Threat 7 | . . . . . . 3 4 . . . . . Locate Traps 12 | . 2 . . . 2 . 6 . 2 . . . Disarm Traps 3 | . . . . . . . 1 . 2 . . . Reprogram Traps 2 | . . . . . . . 2 . . . . . Dispatch Records 1 | . 1 . . . . . . . . . . . Hauler Manifests 1 | . . . . . 1 . . . . . . . Registered Components 1 | . . . . . . . . . 1 . . . Registered Prototypes 1 | . . . . . . . . . 1 . . . Zone Layout 2 | . . . . . 1 1 . . . . . . Fabricator Hacks 10 | . . . . . . . 4 . 6 . . . Network Status 2 | . . . . . . . 1 . 1 . . . Load Schematic 3 | . . . . . . . 1 . 2 . . . Build 5 | . . . . . . . 2 . 3 . . . Repair Station Hacks 4 | . . . . . 4 . . . . . . . Scan Component 2 | . . . . . 2 . . . . . . . Repair 2 | . . . . . 2 . . . . . . . Recycling Unit Hacks . | . . . . . . . . . . . . . Scanalyzer 2 | . . . . . . . 2 . . . . . Insert Component 1 | . . . . . . . 1 . . . . . Analyze 1 | . . . . . . . 1 . . . . . Garrison Access Hacks 3 | . . . . . . . 2 . 1 . . . Seal Access 3 | . . . . . . . 2 . 1 . . . Unauthorized Hacks 61 | . 9 . . . 5 5 19 . 23 . . . Terminals 47 | . 8 . . . 4 3 16 . 16 . . . Track 7 | . . . . . . 1 3 . 3 . . . Assimilate 2 | . . . . . . . 1 . 1 . . . Botnet 28 | . 6 . . . 4 2 8 . 8 . . . Detonate 7 | . . . . . . . 4 . 3 . . . Operators 3 | . 2 . . . . . . . 1 . . . Fabricators 5 | . . . . . . . 2 . 3 . . . Prioritize 3 | . . . . . . . 1 . 2 . . . Recompile 2 | . . . . . . . 1 . 1 . . . Repair Stations 1 | . . . . . . . 1 . . . . . Mechanics 1 | . . . . . . . 1 . . . . . Recycling Units 3 | . 1 . . . . . . . 2 . . . Reject 1 | . . . . . . . . . 1 . . . Mask 2 | . 1 . . . . . . . 1 . . . Scanalyzers . | . . . . . . . . . . . . . Garrison Access 5 | . . . . . 1 2 . . 2 . . . Broadcast 2 | . . . . . . 1 . . 1 . . . Reprogram 1 | . . . . . . . . . 1 . . . Watchers 1 | . . . . . . 1 . . . . . . Jam 1 | . . . . . 1 . . . . . . . Data Cores Recovered 5 | . . . . . 2 . 2 . 1 . . . Used 1 | . . . . . . . 1 . . . . . Hacking Detections 51 | . 5 . . . 8 6 17 . 15 . . . Full Trace Events 19 | . 2 . . . 2 1 6 . 8 . . . Feedback Events 3 | . . . . . 1 . 2 . . . . . Corruption 3 | . . . . . 1 . 2 . . . . . Feedback Blocked . | . . . . . . . . . . . . . Robot Schematics Acquired 5 | . . . . . . 1 1 . 1 . 2 . Robots Built 1 | . . . . . . . . . 1 . . . Authchips . | . . . . . . . . . . . . . Time 58 | . . . . . . . . . 58 . . . Total Robot Build Rating 3 | . . . . . . . . . 3 . . . Part Schematics Acquired 22 | . . . . . . . 2 . 4 . 16 . Parts Built 7 | . . . . . . . 4 . 3 . . . Authchips . | . . . . . . . . . . . . . Time 189 | . . . . . . . 84 . 105 . . . Total Part Build Rating 41 | . . . . . . . 22 . 19 . . . Parts Repaired 2 | . . . . . 2 . . . . . . . Time 64 | . . . . . 64 . . . . . . . Parts Recycled . | . . . . . . . . . . . . . Recycled Matter . | . . . . . . . . . . . . . Retrieved Matter . | . . . . . . . . . . . . . Retrieved Components . | . . . . . . . . . . . . . Parts Scanalyzed 1 | . . . . . . . 1 . . . . . Part Schematics Acquired 1 | . . . . . . . 1 . . . . . Parts Damaged . | . . . . . . . . . . . . . Bothacking | -11 -10 -10 -10 -9 -8 -8 -7 -7 -7 -7 -7 -7 ------------ Run | Yrd Mat Min Exi Min Mat Sto Fac Was Fac Low Zio Dee Used RIF Installer . | . . . . . . . . . . . . . Robots Hacked . | . . . . . . . . . . . . . Non-combat . | . . . . . . . . . . . . . Combat . | . . . . . . . . . . . . . Robot Hacks Applied . | . . . . . . . . . . . . . Relay Couplers Released 3 | . . . . . . . 2 . 1 . . . Machine Destruction 3 | . . . . . . . 2 . 1 . . . Fabnet Peak Effective % . | . . . . . . . . . . . . . Robots Rewired . | . . . . . . . . . . . . . Allies Hacked . | . . . . . . . . . . . . . Hacks Repelled . | . . . . . . . . . . . . . Allies | -11 -10 -10 -10 -9 -8 -8 -7 -7 -7 -7 -7 -7 -------- Run | Yrd Mat Min Exi Min Mat Sto Fac Was Fac Low Zio Dee Total Allies 29 | . . . . 3 . 2 1 20 3 . . . Largest Group 19 | . . . . 3 3 2 1 19 2 . . . Highest-Rated Group 475 | . . . . 40 40 62 26 475 32 . . . Highest-Rated Ally 35 | . . . . 16 16 31 26 35 16 . . . Total Orders 4 | . . . . . . . 2 . 2 . . . STAY 2 | . . . . . . . 1 . 1 . . . FOLLOW 2 | . . . . . . . 1 . 1 . . . Ally Attacks 194 | . . . . . 72 12 . 100 10 . . . Total Damage 6586 | . . . . . 717 229 . 5536 104 . . . Kills 27 | . . . . . 8 4 . 14 1 . . . Allies Corrupted . | . . . . . . . . . . . . . Allies Melted . | . . . . . . . . . . . . . Intel | -11 -10 -10 -10 -9 -8 -8 -7 -7 -7 -7 -7 -7 ------- Run | Yrd Mat Min Exi Min Mat Sto Fac Was Fac Low Zio Dee Robot Analysis Total 5 | . . . . . 1 . 3 . 1 . . . Derelict Logs Recovered 6 | . . 1 . 1 . . . . . 1 3 . Drone Launches . | . . . . . . . . . . . . . Drone Recoveries . | . . . . . . . . . . . . . Exploration | -11 -10 -10 -10 -9 -8 -8 -7 -7 -7 -7 -7 -7 ------------- Run | Yrd Mat Min Exi Min Mat Sto Fac Was Fac Low Zio Dee Turns Passed 7877 | 68 1080 300 195 146 2066 429 1089 150 1118 387 321 528 Spaces Moved 11896 | 32 727 268 209 136 1528 723 2581 382 2692 790 861 967 Core 6 | 5 . . . . 1 . . . . . . . Treads 566 | 24 12 . . . 530 . . . . . . . Legs . | . . . . . . . . . . . . . Wheels 1476 | 3 715 268 209 136 145 . . . . . . . Hover . | . . . . . . . . . . . . . Flight 9848 | . . . . . 852 723 2581 382 2692 790 861 967 Fastest Speed 20 | 50 95 95 80 95 28 26 24 24 20 20 20 20 Average Speed 40 | 141 96 95 90 95 96 26 24 24 20 20 20 20 Slowest Speed 600 | 160 160 95 95 95 600 28 27 24 24 20 20 23 Overloaded Moves . | . . . . . . . . . . . . . Propulsion Burnouts . | . . . . . . . . . . . . . Robots Hopped 20 | . . . . . 2 . 7 . 9 . . 2 Cave-ins Triggered . | . . . . . . . . . . . . . Exploration Rate (%) 67 | 3 94 58 56 39 90 83 61 96 61 77 80 83 Regions Visited 12 Branch Regions 7 Pre-discovered Areas 1 | . . . 1 . . . . . . . . . Known Exits Taken 4 | . . . . . 1 1 . . 1 . 1 . Unknown Exits Taken 6 | 1 1 1 1 1 . . . . . 1 . . Scrap Searched 7 | . . 1 . 2 . . . . . 2 2 . Spaces Dug 32 | . . . . . 6 . 13 2 7 3 . 1 Terrain Destroyed 223 | . . . . . 18 . 120 2 77 5 . 1 Melee 32 | . . . . . 6 . 13 2 7 3 . 1 Projectile 12 | . . . . . 12 . . . . . . . AOE 179 | . . . . . . . 107 . 70 2 . . Terrain Rammed . | . . . . . . . . . . . . . Walls Destroyed . | . . . . . . . . . . . . . Machines Disabled . | . . . . . . . . . . . . . Actions | -11 -10 -10 -10 -9 -8 -8 -7 -7 -7 -7 -7 -7 --------- Run | Yrd Mat Min Exi Min Mat Sto Fac Was Fac Low Zio Dee Total 13964 | 44 915 290 214 148 1911 861 2914 434 3100 944 933 1256 Wait 1006 | . 45 3 . 4 165 46 177 42 218 57 23 226 Move 11848 | 31 726 267 208 135 1523 722 2567 381 2676 789 860 963 Hop 16 | . . . . . 2 . 7 . 5 . . 2 Pick Up 25 | 2 6 . . . 10 2 1 . 1 . 1 2 Fast Attach 66 | 5 1 2 3 1 16 5 9 2 12 . 3 7 Attach 13 | 2 . . . . 9 1 . . 1 . . . Detach 9 | . 1 . . . 5 . 2 . 1 . . . Swap 43 | . 3 . . 1 9 3 5 . 8 2 5 7 Drop 71 | . 3 1 3 2 24 7 7 1 9 . 4 10 Fire 205 | 4 97 11 . 2 70 . 1 . 9 1 . 10 Melee 315 | . . . . . 30 51 78 3 87 48 1 17 Ram . | . . . . . . . . . . . . . Kick . | . . . . . . . . . . . . . Crush 1 | . 1 . . . . . . . . . . . Escape Stasis 36 | . . . . . . . 18 . 18 . . . Rewire . | . . . . . . . . . . . . . Trap . | . . . . . . . . . . . . . Miscellaneous 310 | . 32 6 . 3 48 24 42 5 55 47 36 12 Route ------- -11/Scrapyard -10/Materials (discovered 4 exits: [*Mat x3] / [*Min]) -10/Mines (discovered 2 exits: [*Mat] / *Exi) -10/Exiles -9/Mines -8/Materials (discovered 3 exits: *Fac x2 / *Sto) -8/Storage -7/Factory (discovered 4 exits: *Fac x2 / *Low x2) -7/Waste -7/Factory (discovered 5 exits: *Fac x3 / *Low x2) -7/Lower Caves -7/Zion (discovered 2 exits: *Dee / *Pro) -7/Deep Caves History --------- Turn | Location | Event 1 | -11/Scrapyard | Upgraded with Propulsion slot (x1) 1 | -11/Scrapyard | Upgraded with Utility slot (x1) 1 | -11/Scrapyard | Upgraded with Weapon slot (x1) 30 | -11/Scrapyard | Discovered new exit (range 15) 69 | -11/Scrapyard | Entered Materials 313 | -10/Materials | Build established: Mutant 329 | -10/Materials | Discovered new exit (range 15) 545 | -10/Materials | Discovered new exit (range 10) 596 | -10/Materials | Discovered new exit (range 15) 658 | -10/Materials | Reached level 2 997 | -10/Materials | Discovered new exit (range 13) 1149 | -10/Materials | Entered Mines 1252 | -10/Mines | Reached level 3 1275 | -10/Mines | Upgraded with Weapon slot (x1) 1323 | -10/Mines | Discovered new exit (range 10) 1345 | -10/Mines | Learned Materials security intel 1397 | -10/Mines | Deemed a non-threat by the Exiles lab entrance 1404 | -10/Mines | Joined a pair of Derelicts in attacking an 0b10 outpost 1445 | -10/Mines | Discovered new exit (range 5) 1449 | -10/Mines | Entered Exiles 1473 | -10/Exiles | Met 8R-AWN 1490 | -10/Exiles | Met EX-HEX 1526 | -10/Exiles | Met EX-DEC 1531 | -10/Exiles | Learned location of Zion (-7) 1546 | -10/Exiles | Met EX-BIN 1633 | -10/Exiles | Discovered new exit (range 15) 1644 | -10/Exiles | Entered Mines 1706 | -9/Mines | Learned Materials stockpile data 1707 | -9/Mines | Assisted by bots powering up and referring to "LRC-V3" 1775 | -9/Mines | Discovered new exit (range 11) 1790 | -9/Mines | Entered Materials 1790 | -8/Materials | Accompanied by 3 allies 1792 | -8/Materials | Reached level 4 1807 | -8/Materials | Upgraded with Utility slot (x2) 1858 | -8/Materials | Reached level 5 1964 | -8/Materials | Reached level 6 1993 | -8/Materials | Upgraded with Utility slot (x1) 2296 | -8/Materials | Build established: Skirmisher 2437 | -8/Materials | Discovered new exit (range 16) 2473 | -8/Materials | Identified exit to Factory 2869 | -8/Materials | Reached level 7 2898 | -8/Materials | Upgraded with Propulsion slot (x1) 3230 | -8/Materials | Discovered new exit (range 16) 3286 | -8/Materials | Reached level 8 3286 | -8/Materials | Upgraded with Propulsion slot (x1) 3434 | -8/Materials | Repaired Shield Generator 3468 | -8/Materials | Repaired Plasma Cutter 3483 | -8/Materials | Identified exit to Storage 3527 | -8/Materials | Discovered exit to Factory (range 5) 3667 | -8/Materials | Build established: Scout 3790 | -8/Materials | First assault squad dispatched 3790 | -8/Materials | Reached level 9 3856 | -8/Materials | Entered Storage 3874 | -8/Storage | Met a pair of Derelict thieves 3941 | -8/Storage | Reached level 10 4011 | -8/Storage | Discovered exit to Factory (range 18) 4125 | -8/Storage | Build established: Hacker-Scout 4138 | -8/Storage | Reached level 11 4149 | -8/Storage | Upgraded with Weapon slot (x1) 4285 | -8/Storage | Entered Factory 4287 | -7/Factory | Reached level 12 4294 | -7/Factory | Discovered new exit (range 6) 4296 | -7/Factory | Identified exit to Lower Caves 4409 | -7/Factory | Discovered new exit (range 9) 4414 | -7/Factory | Identified exit to Factory 4417 | -7/Factory | Upgraded with Propulsion slot (x1) 4483 | -7/Factory | Reached level 13 4630 | -7/Factory | Fabricated Imp. System Restoration Module (x2) 4776 | -7/Factory | Reached level 14 4883 | -7/Factory | Discovered exit to Factory (range 9) 4973 | -7/Factory | Upgraded with Utility slot (x1) 5085 | -7/Factory | First assault squad dispatched 5107 | -7/Factory | Reached level 15 5210 | -7/Factory | Fabricated Adv. Plasma Cannon? 5374 | -7/Factory | Manually triggered Chute Trap 5374 | -7/Factory | Sucked down chute 5374 | -7/Factory | Entered Waste 5375 | -7/Waste | Met a frightened Derelict 5383 | -7/Waste | Spotted C-40 Crusher 5389 | -7/Waste | EMP discharged 5412 | -7/Waste | Spotted C-40 Crusher 5412 | -7/Waste | Spotted C-40 Crusher 5415 | -7/Waste | Spotted C-40 Crusher 5416 | -7/Waste | Spotted C-40 Crusher 5427 | -7/Waste | Met Warlord forces unprepared to attack 5435 | -7/Waste | Allies destroyed C-40 Crusher 5454 | -7/Waste | Spotted C-40 Crusher 5463 | -7/Waste | Allies destroyed C-40 Crusher 5467 | -7/Waste | Allies destroyed C-40 Crusher 5470 | -7/Waste | Lost 10 allies 5482 | -7/Waste | Allies destroyed C-40 Crusher 5489 | -7/Waste | EMP discharged 5502 | -7/Waste | Discovered new exit (range 11) 5524 | -7/Waste | Identified exit to Factory 5524 | -7/Waste | Entered Factory 5643 | -7/Factory | Reached level 16 5697 | -7/Factory | Upgraded with Propulsion slot (x1) 5830 | -7/Factory | Discovered exit to Factory (range 17) 5852 | -7/Factory | Noticed a derelict Sapper rigging charges 6084 | -7/Factory | Discovered exit to Factory (range 15) 6270 | -7/Factory | Discovered exit to Factory (range 17) 6279 | -7/Factory | Fabricated Adv. Particle Charger? 6324 | -7/Factory | First assault squad dispatched 6367 | -7/Factory | Fabricated M-14 Sweeper (x1) 6408 | -7/Factory | Reached level 17 6447 | -7/Factory | Destroyed 10 combat bots 6474 | -7/Factory | Garrison activated, responded to threat 6517 | -7/Factory | Fabricated Adv. Melee Analysis Suite? 6529 | -7/Factory | Found Powered Armor 6642 | -7/Factory | Entered Lower Caves 6647 | -7/Lower Caves | Attracted the attention of an 0b10 outpost 6734 | -7/Lower Caves | Destroyed 13 combat bots 6762 | -7/Lower Caves | Learned location of 2 exits from Factory 6812 | -7/Lower Caves | Attracted the attention of an 0b10 checkpoint 6887 | -7/Lower Caves | Destroyed 7 combat bots 6903 | -7/Lower Caves | Encountered a Warlord checkpoint 6961 | -7/Lower Caves | Spotted B-75 Beast 6962 | -7/Lower Caves | Destroyed B-75 Beast 7027 | -7/Lower Caves | A Derelict revealed a hidden shortcut to a safe place 7029 | -7/Lower Caves | Entered Zion 7031 | -7/Zion | Reached level 18 7038 | -7/Zion | Learned 4 Factory zone layouts 7054 | -7/Zion | Discovered new exit (range 10) 7056 | -7/Zion | Identified exit to Proximity Caves 7128 | -7/Zion | Learned 8 Factory zone layouts 7134 | -7/Zion | Found CR-A16's Pointy Stick 7278 | -7/Zion | Discovered new exit (range 5) 7281 | -7/Zion | Saw the warning signs outside the Deep Caves entrance 7282 | -7/Zion | Identified exit to Deep Caves 7350 | -7/Zion | Entered Deep Caves 7402 | -7/Deep Caves | Attacked by Z-Imprinter 7403 | -7/Deep Caves | Z-Facility disabled 7443 | -7/Deep Caves | Destroyed Z-Imprinter 7490 | -7/Deep Caves | Spotted AG-63390 7492 | -7/Deep Caves | Exposed GOLEM chamber 7493 | -7/Deep Caves | Triggered Deep Caves wall 7817 | -7/Deep Caves | Found GOLEM Unit 7822 | -7/Deep Caves | Spotted AG-75415 7833 | -7/Deep Caves | Core integrity fell below 50% 7870 | -7/Deep Caves | Core integrity fell below 20% 7871 | -7/Deep Caves | Spotted AS-62612 7878 | -7/Deep Caves | Destroyed by as-75139 with Assembled Gauss Rifle Last Messages --------------- 07824_ A GOLEM Unit tumbles out of the Wall Chamber. 07825_ AG-75415: "DSI9AT1D G8OHIBQ29FWG 26R186 QD12WHW8W33 TDK1 81FTS" 07838_ Sneak attack on 75-JKM(g). 07838_ Destroyed Unknown Leg. 07838_ Destroyed Imp. Heat Sink. 07838_ Destroyed Beamcaster. 07839_ 75-JKM(g) destroyed. 07843_ Sneak attack on 33-6F7(M). 07843_ Destroyed Battle Rifle. 07843_ Destroyed Particle Charger. 07843_ 33-6F7(M) destroyed. 07843_ Cesium-ion Thruster destroyed. 07864_ as-27615 destroyed. 07869_ Adv. EMP Blaster destroyed. 07872_ Slug penetrates as-06535. 07873_ Critical hit (Burn: +80). 07873_ Penetrated by Slug. 07875_ Slug penetrates as-25642. 07877_ Slug penetrates Wall. 07878_ Penetrated by Slug. Map ----- +----------------------------------------------------+ | ?????????????????????????????????????????????????? | | ???????????????#######???????????????????????????? | | ??????????????## #####???????????????????????? | | ???????????#### #???????????????????????? | | ####?????### #????????????????????##### | | ##???## ## ##??????????????????### # | | ##### ##?###?????????????? # | | ## #####?????????????????? | | ##?????????????????????? | | #??????????????????????? | | #???????????????????????? | | # #???????????????????????? | | ## #??????????????????????# | | ?# #????????????????????? # | | ?# #????????????????????? | | ?## ####?????????????????????? | | ?## ##????##?????????? ????????# | | ?# ##???? ##????????? #??????## | | ?# ##??? #????????? #??????# | | ?# ### #?????????? ##??????# | | ?### #???????????? ##??#### | | ???## ##???????????? #?## # | | ##?## ##?????#####??? #?# | | ## ####?????## ##?# #?# | | ##??####### ## #?# a a | | ####### @ #???# | | ##?## a #?????# a | | a#?## a ## #?????# | | aa###a aa aa##aa #??????# | | aa## a a ## a aa #??????# | | aaaa a #### a aaaa ##???##### | | aaaa aaa ##??# a aa a #???## ## | | a aa #####???## # aa ##???# ## | | a ###????????## ##aa #????# # | | ##???????????# ### a###?## | | ####????????????# #?# a a### | | #???????????????# #?# aa aaaaa | | #???????????????# #?### a Aaaa | | # #???????????????# #???# aa | | # #???????????????# #?# ###a | | # #??????????????? ?# #?# a | | ###????????????? ?# ?### | | #?????????????# ##?# ??# | | #????????????##???# a"a??## | | # #???????????????? """ ??# | | ## #??????????????? # a"" ??# ### | | ??# ##??????????????##### #?## ###?? | | ???####???????????????????####?????# #???? | | ????????????????????????????????????# #######???? | | ?????????????????????????????????????###?????????? | +----------------------------------------------------+ Best States ------------- Heat Dissipation 61 Energy Generation 37 Energy Capacity 700 Matter Stores 300 Matter Capacity 300 Sight Range 19 Robot Scan Range 22 Terrain Scan Density 10 ECM Strength 2 Additional Mass Support 12 Corruption Block 8 Armor Coverage 400 Resistance: EM 15 Melee Speed Boost 20 Evasion (%) 74 Melee Accuracy 8 Recoil Reduction 2 Offensive Hacking 30 Defensive Hacking 15 Authchip Count 1 Trap Extractor Capacity 6 Item Schematics ----------------- Plasma Cutter | -7/Factory | Scanalyzed Adv. Plasma Cannon | -7/Factory | Hacked Gyrokinetic Inverter | -7/Factory | Hacked Greatsword | -7/Factory | Hacked Variable Charge Gun | -7/Factory | Hacked Adv. Melee Analysis Suite | -7/Factory | Hacked Med. Treads | -7/Zion | Archive Hvy. Machine Gun | -7/Zion | Archive Imp. Field Recycling Unit | -7/Zion | Archive Power Amplifier | -7/Zion | Archive Corruption Screen | -7/Zion | Archive Angular Momentum Engine | -7/Zion | Archive Mak. Laser | -7/Zion | Archive Field Propulsion Drive | -7/Zion | Archive Antigrav System | -7/Zion | Archive Hvy. Ion Cannon | -7/Zion | Archive Magnetic Acceleration Cannon | -7/Zion | Archive Tiamat Missile Launcher | -7/Zion | Archive Nuclear Pulse Thruster | -7/Zion | Archive Ripper | -7/Zion | Archive Kinecellerator | -7/Zion | Archive Arm. Leg | -7/Zion | Archive Robot Schematics ------------------ G-34 Mercenary | -8/Storage | Hacked M-28 Smith | -7/Factory | Hacked G-47 Trooper | -7/Factory | Hacked L-41 Fighter | -7/Zion | Archive R-06 Scavenger | -7/Zion | Archive Fabricated ------------ Imp. System Restoration Module | x2 | -7/Factory | Preloaded Adv. Plasma Cannon | x2 | -7/Factory Adv. Particle Charger | x2 | -7/Factory | Preloaded M-14 Sweeper | x1 | -7/Factory | Preloaded Adv. Melee Analysis Suite | x1 | -7/Factory Alien Tech Used ----------------- None Achievements -------------- None Challenges ------------ None RPGLIKE | -11 -10 -10 -10 -9 -8 -8 -7 -7 -7 -7 -7 -7 --------- Run | Yrd Mat Min Exi Min Mat Sto Fac Was Fac Low Zio Dee Levels Raised 17 | . 1 1 . . 6 2 4 . 2 . 1 . XP Earned 28858 | 3000 2400 850 200 950 7639 3458 6571 133 2324 886 118 329 XP Spent 28405 | 3000 1480 800 . . 9480 3200 5475 . 3270 . 1550 150 Upgrades 63 | 6 11 1 . . 24 5 6 . 6 . 3 1 Propulsion Slot 5 | 1 . . . . 2 . 1 . 1 . . . Utility Slot 5 | 1 . . . . 3 . 1 . . . . . Weapon Slot 3 | 1 . 1 . . . 1 . . . . . . Core Integrity 8 | . 4 . . . . . . . 4 . . . Heat Dissipation 6 | . 4 . . . 1 . . . . . . 1 Energy Generation 2 | . . . . . . 1 . . . . 1 . Mass Support 2 | . . . . . 2 . . . . . . . Inventory Capacity 5 | 3 . . . . . . 1 . 1 . . . Sight Range 3 | . 1 . . . 1 . . . . . 1 . Sensor Range 11 | . . . . . 9 . 2 . . . . . Ranged Accuracy 2 | . 2 . . . . . . . . . . . Melee Accuracy 4 | . . . . . 2 1 . . . . 1 . Hack Attack % 4 | . . . . . 2 2 . . . . . . Hack Defense % 3 | . . . . . 2 . 1 . . . . . Protomatter Created 2754 | . 217 33 . 23 279 284 605 . 594 567 . 152 Integrity Restored 5293 | . 685 96 . 39 927 492 715 97 1092 938 . 212 Core 3874 | . 639 44 . 16 765 315 487 51 772 663 . 122 Parts 1419 | . 46 52 . 23 162 177 228 46 320 275 . 90 Protomatter Decayed 1129 | . 19 . . 8 120 216 294 . 256 136 . 80 Game ------ Seed BackupGhostAutogun Manual? 0 Play Time 02:53:13 Cumulative 215.2 hours Start 2024.06.13 @ 19:03:52 End 2024.06.14 @ 18:45:17 Sessions 4 Manual Loads 0 Difficulty Rogue Special Mode Winter2019/RPGLIKE Game No. 61 Rogue 56 Adventurer 4 Explorer 1 Win Type - Total 4 Types 1/0/1/1/0/0/0/0/1 Lore% 50 Gallery% 66 Achievement% 44 Wizard Run 0 Options --------- Layout 0 ASCII 0 Keyboard 0 Movement Mouse Keybinds 0 Fullscreen 1 Font 18/SmallcapsGlow Map View 76x50 Zoom Use 0% Tactical HUD 1 Map Filters NONE Filters NONE Steam X RUN: ad99e37c-8dfd-4f84-a722-3a6955aa4e7c